Cogmind - Beta 15 @@@ ROGUE MODE // 2025.10.21 @ 18:32:29 Player: morimori Result: Destroyed by H-81 Overseer with Heavy Linear Accelerator Performance ------------- Evolutions (9) 4500 Regions Visited (11) 2200 Robots Destroyed (191) 955 Value Destroyed (7090) 7090 Prototype IDs (22) 440 Alien Tech Used (0) 0 Bonus (864) 864 TOTAL SCORE: 16049 Bonus ------- High Alert Combat Kills 312 Follower Combat Kills 52 Entered DSFs 500 Cogmind --------- Core Integrity 0/1600 Matter 137/300 Energy 99/100 System Corruption 17% Temperature Cool (0) Movement Core (50) Location -1/Access Parts ------- > --- POWER (2) -------- (None) > --- PROPULSION (6) --- (None) > --- UTILITY (13) ----- Advanced Signal Interpreter > --- WEAPON (4) ------- (None) > --- INVENTORY (5) ---- Light Quantum Reactor Energy Filter Advanced Drone Bay (2/2) Matter Neutralizer Peak State ------------ > --- POWER ------------ Micro Antimatter Reactor Micro Antimatter Reactor > --- PROPULSION ------- Armored Treads Heavy Treads Advanced Medium Treads > --- UTILITY ---------- Advanced Heat Sink Advanced Heat Sink High-capacity Storage Unit Advanced Signal Interpreter Advanced Terrain Scan Processor Weapon Mount Core Analyzer Improved Weapon Cycler Layered Heavy Armor Plating Hacking Suite > --- WEAPON ----------- Nova Cannon Mini Assault Cannon Mass Driver Hypervelocity Mass Driver > --- INVENTORY -------- Micro Antimatter Reactor Energy Well High-capacity Matter Pod Matter Compressor Advanced Gravity Neutralizer Improved Terrain Scanner Improved Launcher Guidance Computer Hardened Medium Armor Plating Hacking Suite Long-range Tractor Beam Gamma Rifle Wave Gun Matter Neutralizer Rocket Array [Rating: 121] Favorites ----------- Power Reinforced Fission Core Engine Improved Deuterium Engine Power Core Reinforced Fission Core Reactor Micro Antimatter Reactor Propulsion Armored Treads Treads Armored Treads Hover Unit Antigrav Array Utility Hacking Suite Device Improved Sensor Array Storage High-capacity Storage Unit Processor Core Analyzer Hackware Hacking Suite Protection Hardened Light Armor Plating Weapon Precision Assault Rifle Energy Gun Field Laser Energy Cannon Matter Neutralizer Ballistic Gun Precision Assault Rifle Ballistic Cannon Hypervelocity Mass Driver Launcher Rocket Array Impact Weapon Maul Slashing Weapon Katana Build | -11 -10 -9 -8 -7 -6 -5 -4 -3 -2 -2 -1 ------- Run | Yrd Mat Mat Mat Fac Fac Fac Fac Res Res DSF Acc Slots Evolved 18 | . . 2 2 2 2 2 2 2 2 . 2 Power 1 | . . . . . . . . 1 . . . Propulsion 4 | . . . 1 1 . . . . 2 . . Utility 11 | . . 1 1 1 2 2 2 . . . 2 Weapon 2 | . . 1 . . . . . 1 . . . Parts Attached 148 | 7 14 20 16 10 7 13 16 32 . 5 8 Power 15 | 1 3 3 1 1 . 3 . 3 . . . Engine 8 | 1 3 2 1 1 . . . . . . . Core 4 | . . 1 . . . 3 . . . . . Reactor 3 | . . . . . . . . 3 . . . Propulsion 24 | 2 . 4 5 1 . 2 1 4 . 4 1 Treads 21 | 2 . 4 5 1 . 2 1 1 . 4 1 Leg . | . . . . . . . . . . . . Wheel . | . . . . . . . . . . . . Hover 3 | . . . . . . . . 3 . . . Flight . | . . . . . . . . . . . . Utility 63 | 2 5 4 5 2 4 6 11 16 . 1 7 Device 28 | 1 1 4 2 1 2 1 4 7 . . 5 Storage 9 | 1 4 . 1 . . . . 3 . . . Processor 6 | . . . . 1 1 . 1 2 . . 1 Hackware 10 | . . . 1 . 1 2 4 1 . 1 . Protection 10 | . . . 1 . . 3 2 3 . . 1 Artifact . | . . . . . . . . . . . . Weapon 46 | 2 6 9 5 6 3 2 4 9 . . . Energy Gun 17 | . 2 4 5 3 . . . 3 . . . Energy Cannon 4 | . . 1 . . . 1 1 1 . . . Ballistic Gun 16 | 2 4 2 . 1 2 . 2 3 . . . Ballistic Cannon 5 | . . . . 1 1 1 1 1 . . . Launcher 2 | . . 1 . 1 . . . . . . . Special Weapon . | . . . . . . . . . . . . Impact Weapon 1 | . . 1 . . . . . . . . . Slashing Weapon 1 | . . . . . . . . 1 . . . Piercing Weapon . | . . . . . . . . . . . . Special Melee Weapon . | . . . . . . . . . . . . Unidentified Prototypes 6 | . . 1 . 3 . 1 . 1 . . . Corrupted Parts 3 | . . . 3 . . . . . . . . System Corruption 3 | . . . 3 . . . . . . . . Parts Lost 49 | . 2 1 . . . 1 2 30 . 4 9 Power 4 | . 1 . . . . . . 3 . . . Propulsion 9 | . . . . . . . . 5 . . 4 Utility 20 | . 1 . . . . 1 . 10 . 3 5 Weapon 16 | . . 1 . . . . 2 12 . 1 . Highest Loss Streak 14 | . 1 1 . . . 1 1 14 . 4 4 To Critical Strikes . | . . . . . . . . . . . . Average Backups 16 | 1 16 19 19 18 18 18 18 14 5 5 4 Power 1 | . 2 2 2 1 1 1 1 . 1 1 . Propulsion 1 | . . 1 1 1 1 1 1 . . . . Utility 10 | . 8 11 11 11 11 11 11 9 2 2 1 Weapon 4 | . 4 4 4 3 4 4 4 3 2 2 1 Tool/Special . | . . . . . . . . . . . . Unused Backups 48 | . 8 9 8 3 3 6 4 2 1 . 4 Power 10 | . 1 1 2 1 . 2 1 1 . . 1 Propulsion . | . . . . . . . . . . . . Utility 20 | . 2 4 3 1 2 3 2 . 1 . 2 Weapon 18 | . 5 4 3 1 1 1 1 1 . . 1 Tool/Special . | . . . . . . . . . . . . Average Slot Usage (%) 90 | . 93 99 99 95 96 93 89 83 30 32 23 Engine 5 | . 14 7 9 7 6 1 . . . . . Core 2 | . . 3 . . . 3 5 3 . . . Treads 20 | . 27 21 27 30 26 17 11 10 . 6 8 Device 11 | . 5 21 14 8 10 10 9 13 4 4 2 Storage 8 | . 15 11 12 7 6 5 5 3 . . . Processor 6 | . . . . 5 7 11 10 13 13 12 11 Hackware 8 | . . . . 7 12 16 26 12 4 4 . Protection 3 | . . . 8 7 5 5 4 2 . . . Energy Gun 6 | . 3 23 24 13 . . . . . . . Ballistic Gun 11 | . 24 8 2 . 14 15 13 5 . . . Ballistic Cannon 1 | . . . . 3 2 . . 5 . . . Peak Build Rating 121 | 7 10 24 39 47 62 88 98 121 47 75 99 Average Rating 52 | 5 8 21 34 45 56 76 93 99 46 61 55 On Entrance 43 | . 7 10 24 39 47 58 84 96 47 47 62 Naked Turns . | . . . . . . . . . . . . Heaviest Build 118 | 14 51 63 71 72 74 94 97 118 3 3 29 Greatest Support 140 | 40 40 46 69 88 88 140 140 120 26 26 75 Greatest Overweight (x) 6 | 3 1 1 1 . . . . 2 . . 6 Average Overweight (x) . | . . 1 . . . . . . . . . Largest Inventory Capacity 20 | 8 20 20 20 20 20 20 20 20 5 5 5 Average Capacity 18 | 7 17 20 20 20 20 20 20 17 5 5 5 Most Carried 20 | 4 20 20 20 20 20 20 20 20 5 5 5 Average Carried 17 | 1 16 19 19 19 19 19 19 15 4 5 4 Final Capacity 20 | 8 20 20 20 20 20 20 20 5 5 5 5 Final Carried 20 | 4 20 20 20 20 20 20 20 5 5 5 5 Class Distribution -------------------- 24% | Mutant 21% | Hacker-Tank 20% | Scavenger-Skirmisher 8% | Scavenger-Gunner 7% | Gunner 6% | Tank 4% | Hacker-Skirmisher 3% | Hacker-Mutant Dominant Class ---------------- Mutant | -10/Materials Scavenger-Gunner | -9/Materials Tank | -8/Materials Scavenger-Skirmisher | -7/Factory Scavenger-Skirmisher | -6/Factory Hacker-Tank | -5/Factory Hacker-Tank | -4/Factory Scavenger-Skirmisher | -3/Research Mutant | -2/Research Mutant | -2/DSF Mutant | -1/Access Resources | -11 -10 -9 -8 -7 -6 -5 -4 -3 -2 -2 -1 ----------- Run | Yrd Mat Mat Mat Fac Fac Fac Fac Res Res DSF Acc Matter Collected 7293 | 306 1073 498 198 240 369 581 1673 2355 . . . Remotely 1953 | . . . . . . . 284 1669 . . . Salvage Created 8289 | 96 985 1221 1030 256 409 638 1430 2224 . . . Parts 428 | 8 58 73 59 12 21 35 61 101 . . . Haulers Intercepted 7 | . 2 2 2 1 . . . . . . . Recyclers Shooed 10 | . 1 1 . . 1 . 3 3 . . 1 Parts Field Recycled . | . . . . . . . . . . . . Retrieved Matter . | . . . . . . . . . . . . Parts Self-Destructed . | . . . . . . . . . . . . Prevented . | . . . . . . . . . . . . Kills | -11 -10 -9 -8 -7 -6 -5 -4 -3 -2 -2 -1 ------- Run | Yrd Mat Mat Mat Fac Fac Fac Fac Res Res DSF Acc Combat Hostiles Destroyed 132 | . 22 24 16 4 2 10 19 35 . . . Guns 91 | . 20 24 12 . 2 10 15 8 . . . Cannons 17 | . . . . 3 . . . 14 . . . AOE 19 | . 2 . 1 . . . 4 12 . . . Classes Destroyed 15 | 3 5 4 2 1 . . . . . . . Worker 10 | 1 . 2 . . 2 . . 5 . . . Builder 5 | . . 1 . . . . . 4 . . . Tunneler 3 | 1 . 1 . . 1 . . . . . . Hauler 7 | . 2 2 2 1 . . . . . . . Recycler 15 | 1 1 1 1 . 2 . 3 6 . . . Operator 7 | . 3 1 2 . 1 . . . . . . Watcher 12 | . 3 3 . 1 1 1 1 2 . . . Swarmer 35 | . 6 9 4 . . . 5 11 . . . Grunt 42 | . 16 8 6 . . 4 1 7 . . . Brawler 1 | . . 1 . . . . . . . . . Duelist 2 | . . 1 1 . . . . . . . . Sentry 13 | . . 5 2 2 . 1 3 . . . . Hunter 12 | . . . 2 . . 1 4 5 . . . Programmer 26 | . . . . 2 2 4 6 12 . . . Heavy 1 | . . . 1 . . . . . . . . Best Kill Streak 15 | 2 4 7 7 2 2 4 5 15 . . . Combat Bots Only 11 | . 4 7 5 1 1 4 5 11 . . . Max Kills in Single Turn 7 | 1 2 2 2 1 2 1 4 7 . . . Gunslinging 1 | . 1 1 1 . . . . . . . . Exploded 4 | . 2 . 1 . . . 4 4 . . . Melee . | . . . . . . . . . . . . Uniques/NPCs Destroyed . | . . . . . . . . . . . . Combat | -11 -10 -9 -8 -7 -6 -5 -4 -3 -2 -2 -1 -------- Run | Yrd Mat Mat Mat Fac Fac Fac Fac Res Res DSF Acc Hostile Shots Fired 1269 | . 71 77 50 52 8 41 174 473 . 31 292 Missed 406 | . 15 21 15 25 1 8 49 129 . 12 131 Hits 863 | . 56 56 35 27 7 33 125 344 . 19 161 Melee 22 | . . . . . . . . 10 . 12 . Projectile 841 | . 56 56 35 27 7 33 125 334 . 7 161 AOE 6 | . . . . . . . 1 2 . 3 . Critical Strikes 48 | . . . 1 2 . 2 3 20 . 6 14 Actively Blocked 1 | . . . . . . . . . . . 1 Part Disruptions 2 | . . . . . . . . 1 . . 1 Damage Taken 16733 | . 628 640 611 296 109 637 2465 6503 . 1022 3822 Core 2964 | . 46 110 73 6 16 26 142 802 . 108 1635 Absorbed by Shields . | . . . . . . . . . . . . Reduced by Siege Mode 78 | . . . . . . . . 78 . . . Redirected to Shielding 37 | . . . . . . . . . . . 37 Regen/Repaired (Parts) 852 | . 96 64 . . 136 116 . 440 . . . Core Remaining (%) 85 | 100 81 72 86 99 98 97 87 38 . 92 . Volleys Fired 484 | 9 86 64 42 20 26 42 90 96 . . 9 Largest 4 | 2 2 3 3 3 3 3 3 4 . . 1 Hottest 309 | 40 80 201 165 165 84 90 121 309 . . 105 Shots Fired 1233 | 18 175 191 124 45 68 104 213 286 . . 9 Gun 972 | 18 175 185 124 31 62 93 183 101 . . . Cannon 251 | . . 5 . 14 6 11 29 177 . . 9 Launcher 10 | . . 1 . . . . 1 8 . . . Special . | . . . . . . . . . . . . Kinetic 820 | 18 165 52 6 14 68 93 195 209 . . . Thermal 246 | . . 131 2 13 . 11 17 63 . . 9 Explosive 10 | . . 1 . . . . 1 8 . . . Electromagnetic 157 | . 10 7 116 18 . . . 6 . . . Robot Hit Streak 29 | 10 13 7 8 8 9 29 18 19 . . . Robot Miss Streak 8 | 2 4 8 5 3 2 3 3 6 . . . Penetration Max 1 | . . . . . . . . 1 . . . Secondary Targets 18 | . 3 8 1 . . 3 3 . . . . Max Gunslinging Chain 2 | . 1 2 1 . . 1 1 . . . . Shots Hit Robots 741 | 13 109 105 72 26 44 73 138 161 . . . Core Hits 399 | 6 52 43 31 7 20 27 65 139 . . 9 Critical Kills 9 | . 2 1 . . . 1 1 4 . . . Critical Parts Destroyed 17 | . . . . . 1 . 4 12 . . . Critical Strikes 47 | . 2 8 3 5 3 1 5 20 . . . Burn 10 | . . 7 . 2 . . . 1 . . . Destroy 26 | . 2 1 . . 1 1 5 16 . . . Blast 8 | . . . . 3 2 . . 3 . . . Corrupt 3 | . . . 3 . . . . . . . . Melee Attacks . | . . . . . . . . . . . . Impact . | . . . . . . . . . . . . Slashing . | . . . . . . . . . . . . Piercing . | . . . . . . . . . . . . Sneak Attacks . | . . . . . . . . . . . . Combat Hostiles . | . . . . . . . . . . . . Follow-up Attacks . | . . . . . . . . . . . . Damage Inflicted 18309 | 133 1342 1825 1516 882 1068 1502 3019 6906 . . 116 Guns 11812 | 133 1203 1769 1423 265 960 1502 2736 1821 . . . Cannons 3827 | . . 25 . 617 108 . 112 2965 . . . Explosions 2554 | . 139 31 93 . . . 171 2120 . . . Melee . | . . . . . . . . . . . . Ramming 116 | . . . . . . . . . . . 116 Kinetic 11161 | 133 1149 442 36 617 1068 1502 2848 3366 . . . Thermal 3008 | . 139 1303 128 138 . . . 1300 . . . Explosive 2291 | . . . . . . . 171 2120 . . . Electromagnetic 1733 | . 54 80 1352 127 . . . 120 . . . Impact . | . . . . . . . . . . . . Slashing . | . . . . . . . . . . . . Piercing . | . . . . . . . . . . . . Highest Corruption 21 | . 2 . 3 2 1 3 12 21 . . 17 Average Corruption 5 | . 1 . 2 1 1 2 6 10 . . 9 Corruption Purged . | . . . . . . . . . . . . Corruption Blocked . | . . . . . . . . . . . . Effects 167 | . 25 . . 11 2 6 44 65 . . 14 Message Errors 30 | . 8 . . 2 2 2 9 3 . . 4 Matter Fused 34 | . 5 . . 4 . 2 9 13 . . 1 Heat Flow Errors 23 | . 3 . . 1 . . 5 13 . . 1 Energy Discharges 17 | . 2 . . . . . 4 10 . . 1 Parts Rejected 3 | . . . . . . . 2 . . . 1 Parts Fused 2 | . . . . . . . . 2 . . . Data Loss (minor) 19 | . 3 . . 2 . 1 5 4 . . 4 Data Loss (major) 11 | . 1 . . . . 1 5 3 . . 1 Misfires 6 | . 3 . . . . . . 3 . . . Alerts 6 | . . . . 2 . . 3 1 . . . Misdirections 4 | . . . . . . . . 3 . . 1 Weapon Failures 12 | . . . . . . . 2 10 . . . Overload Shots . | . . . . . . . . . . . . Overflow Damage 195 | . 14 . 10 64 . . . 107 . . . Projectiles 153 | . . . . 64 . . . 89 . . . Explosions 42 | . 14 . 10 . . . . 18 . . . Melee . | . . . . . . . . . . . . Knockbacks 26 | . . . . 4 1 . . 21 . . . Impact . | . . . . . . . . . . . . Kinetic 24 | . . . . 4 1 . . 19 . . . Secondary 2 | . . . . . . . . 2 . . . Self-Inflicted Damage 201 | . 40 28 40 . . . . 42 . . 51 Shots 5 | . 1 1 1 . . . . 2 . . . Rammed 32 | . . . . . . . . . . 1 31 Targets Rammed 32 | . . . . . . . . . . 1 31 Kicked . | . . . . . . . . . . . . Crushed . | . . . . . . . . . . . . Highest Temperature 644 | . 220 333 315 125 27 160 366 644 . . 109 Average Temperature 80 | . 42 55 105 32 13 56 86 116 . . 46 Received Heat Transfer 1128 | . 261 147 117 42 . 153 102 243 . . 63 Effects 21 | . . 2 4 . . . 1 14 . . . Shutdowns 5 | . . . . . . . 1 4 . . . Energy Bleed 4 | . . 1 . . . . . 3 . . . Interference 8 | . . . 4 . . . . 4 . . . Matter Decay 3 | . . 1 . . . . . 2 . . . Damage (minor) 1 | . . . . . . . . 1 . . . Siege Activations 5 | . . . . . . . . 5 . . . Total Turns 129 | . . . . . . . . 129 . . . Longest Duration 46 | . . . . . . . . 46 . . . Martial Activations . | . . . . . . . . . . . . Shielding Activations . | . . . . . . . . . . . . Robots Disrupted 1 | . . . 1 . . . . . . . . Combat Hostiles 1 | . . . 1 . . . . . . . . Robots Corrupted 5 | . . . 3 1 . . . 1 . . . Combat Hostiles 5 | . . . 3 1 . . . 1 . . . Parts Fried 16 | . . 1 12 2 . . . 1 . . . Impact Corruptions 1 | . . . . . . . . 1 . . . Robots Melted . | . . . . . . . . . . . . Combat Hostiles . | . . . . . . . . . . . . Parts Melted 7 | . . 4 2 . . . . 1 . . . Heat Transferred 5617 | . 250 3367 224 407 . . . 1369 . . . Parts Sabotaged . | . . . . . . . . . . . . Parts Stolen . | . . . . . . . . . . . . Parts Stripped . | . . . . . . . . . . . . Power Chain Reactions 4 | . 1 1 2 . . . . . . . . Alert | -11 -10 -9 -8 -7 -6 -5 -4 -3 -2 -2 -1 ------- Run | Yrd Mat Mat Mat Fac Fac Fac Fac Res Res DSF Acc Maximum Alert Level 3 | . . 1 1 . . . . 3 1 1 1 Low Security (%) 85 | 100 100 73 86 100 100 100 100 41 . . 62 Level 1 7 | . . 26 13 . . . . 3 100 100 37 Level 2 6 | . . . . . . . . 52 . . . Level 3 . | . . . . . . . . 2 . . . Level 4 . | . . . . . . . . . . . . Level 5 . | . . . . . . . . . . . . High Security . | . . . . . . . . . . . . Max Security . | . . . . . . . . . . . . Peak Influence 711 | 10 117 282 244 97 31 90 144 711 341 248 274 Initial 326 | . 3 19 113 97 . . 13 51 326 248 124 Average 97 | 1 33 130 108 21 3 24 57 325 328 238 180 Influence Increases 5062 | 15 626 815 486 182 168 362 665 1242 15 . 486 Destroy 0b10 Robot/C 2660 | . 440 480 320 80 40 200 400 700 . . . Destroy 0b10 Robot/NC 300 | 15 45 55 25 10 35 5 25 85 . . . Destroy Leader 618 | . 90 120 84 44 22 52 82 124 . . . Allied During Kill 4 | . . . . . . . 4 . . . . Successful Hack 272 | . 33 20 6 12 48 42 24 36 . . 51 Disable Machine 225 | . . 45 30 30 15 15 30 45 . . 15 Destroy Structure 368 | . 3 20 6 6 8 18 100 192 . . 15 Partial Spotted 15 | . . . . . . . . . 15 . . Lose Combat Pursuer 600 | . 15 75 15 . . 30 . 60 . . 405 Influence Decreases 4824 | 10 584 594 540 396 168 334 594 760 265 123 456 Entered New Map 787 | . 2 28 155 117 . . 15 48 255 83 84 Time Decay 3412 | 10 562 476 385 279 158 314 539 417 10 . 262 Lost Part 476 | . 20 1 . . . 10 20 295 . 40 90 Lost Ally 60 | . . . . . 10 10 20 . . . 20 Purge Threat 89 | . . 89 . . . . . . . . . Squads Dispatched 44 | . 6 1 2 1 4 8 7 9 . 1 5 Investigation 11 | . 3 . . . 1 4 2 1 . . . Extermination 21 | . . . . 1 2 3 5 6 . . 4 Reinforcement 12 | . 3 1 2 . 1 1 . 2 . 1 1 Assault . | . . . . . . . . . . . . Garrison . | . . . . . . . . . . . . Intercept . | . . . . . . . . . . . . Searches Triggered . | . . . . . . . . . . . . Construction Impeded 1 | . . . . . . . . 1 . . . Haulers Reinforced . | . . . . . . . . . . . . Active Scanning Responses . | . . . . . . . . . . . . Cargo Convoy Interrupts . | . . . . . . . . . . . . Stealth | -11 -10 -9 -8 -7 -6 -5 -4 -3 -2 -2 -1 --------- Run | Yrd Mat Mat Mat Fac Fac Fac Fac Res Res DSF Acc Distress Signals 20 | . 3 6 3 1 1 3 . 3 . . . Communications Jammed . | . . . . . . . . . . . . Distress Signals . | . . . . . . . . . . . . Times Spotted 254 | . 36 37 20 6 12 18 19 59 . 4 43 Peak Tracking Total 16 | . 5 6 3 2 2 4 5 13 . 4 16 Tactical Retreats 17 | . 1 2 1 . . 2 . 2 . . 9 Traps | -11 -10 -9 -8 -7 -6 -5 -4 -3 -2 -2 -1 ------- Run | Yrd Mat Mat Mat Fac Fac Fac Fac Res Res DSF Acc Traps Triggered 9 | . 4 . . . . 1 1 2 . . 1 Indirectly . | . . . . . . . . . . . . Trap Hack Attempts . | . . . . . . . . . . . . Triggered . | . . . . . . . . . . . . Disarmed . | . . . . . . . . . . . . Reprogrammed . | . . . . . . . . . . . . Reused . | . . . . . . . . . . . . Traps Extracted . | . . . . . . . . . . . . Installed . | . . . . . . . . . . . . Triggered . | . . . . . . . . . . . . Machines | -11 -10 -9 -8 -7 -6 -5 -4 -3 -2 -2 -1 ---------- Run | Yrd Mat Mat Mat Fac Fac Fac Fac Res Res DSF Acc Machines Disabled 15 | . . 3 2 2 1 1 2 3 . . 1 Max in Single Turn 2 | . . 2 1 1 1 1 1 1 . . 1 Garrison Access 1 | . . . . . 1 . . . . . . Machines Repaired . | . . . . . . . . . . . . Machines Dismantled . | . . . . . . . . . . . . Machines Sabotaged . | . . . . . . . . . . . . Overloaded Fab Kills . | . . . . . . . . . . . . Hacking | -11 -10 -9 -8 -7 -6 -5 -4 -3 -2 -2 -1 --------- Run | Yrd Mat Mat Mat Fac Fac Fac Fac Res Res DSF Acc Machines Accessed 71 | . 8 12 3 3 13 11 7 7 2 . 5 Terminals 44 | . 5 8 3 2 7 8 2 3 2 . 4 Fabricators 5 | . . . . . 1 1 3 . . . . Repair Stations 6 | . 1 1 . . 1 1 1 1 . . . Recycling Units 10 | . 2 1 . 1 2 1 1 2 . . . Scanalyzers 4 | . . 2 . . 1 . . 1 . . . Garrison Access 2 | . . . . . 1 . . . . . 1 Total Hacks 190 | . 25 33 10 7 27 39 24 15 3 . 7 Successful 90 | . 12 14 4 3 18 14 16 5 2 . 2 Failed 99 | . 13 19 6 4 9 24 8 10 1 . 5 Catastrophic 15 | . 1 2 . 2 1 4 . 1 . . 4 Database Lockouts 1 | . . . . . . 1 . . . . . Manual 86 | . 15 10 5 5 13 26 9 3 . . . Terminals 127 | . 20 23 10 6 17 30 6 6 3 . 6 Fabricators 18 | . . . . . 2 3 13 . . . . Repair Stations 19 | . 2 4 . . 2 5 4 2 . . . Recycling Units 15 | . 3 1 . 1 2 1 1 6 . . . Scanalyzers 7 | . . 5 . . 1 . . 1 . . . Garrison Access 4 | . . . . . 3 . . . . . 1 Terminal Hacks 38 | . 5 5 3 2 8 6 3 2 2 . 2 Part Schematic 3 | . 1 . . . 1 1 . . . . . Robot Analysis 4 | . 1 . 1 . 2 . . . . . . Prototype ID Bank 6 | . 1 1 1 . 2 . 1 . . . . Open DSF 1 | . . . . . . . . . 1 . . Level Access Points 5 | . . . . 1 1 1 1 1 . . . Branch Access Points 3 | . 1 1 1 . . . . . . . . Terminal Index 5 | . 1 1 . 1 1 1 . . . . . Fabricator Index 2 | . . . . . 1 . 1 . . . . Unreport Threat 1 | . . 1 . . . . . . . . . Locate Traps 4 | . . 1 . . . 2 . . 1 . . Zone Layout 4 | . . . . . . 1 . 1 . . 2 Fabricator Hacks 9 | . . . . . 1 1 7 . . . . Network Status 1 | . . . . . . 1 . . . . . Load Schematic 5 | . . . . . 1 . 4 . . . . Build 3 | . . . . . . . 3 . . . . Repair Station Hacks 13 | . 2 3 . . 2 3 1 2 . . . Scan Component 8 | . 1 2 . . 1 2 1 1 . . . Repair 5 | . 1 1 . . 1 1 . 1 . . . Recycling Unit Hacks 7 | . 2 . . . 2 1 1 1 . . . Process 1 | . . . . . . . . 1 . . . Retrieve Components 6 | . 2 . . . 2 1 1 . . . . Scanalyzer 5 | . . 4 . . 1 . . . . . . Insert Component 3 | . . 2 . . 1 . . . . . . Analyze 2 | . . 2 . . . . . . . . . Garrison Access Hacks 1 | . . . . . 1 . . . . . . Seal Access 1 | . . . . . 1 . . . . . . Unauthorized Hacks 17 | . 3 2 1 1 3 3 4 . . . . Terminals 13 | . 3 2 1 1 2 3 1 . . . . Assimilate 4 | . 1 . . . 2 1 . . . . . Botnet 7 | . 1 1 1 1 . 2 1 . . . . Operators 2 | . 1 1 . . . . . . . . . Fabricators 4 | . . . . . 1 . 3 . . . . Prioritize 1 | . . . . . . . 1 . . . . Fabnet 1 | . . . . . . . 1 . . . . Recompile 2 | . . . . . 1 . 1 . . . . Repair Stations . | . . . . . . . . . . . . Recycling Units . | . . . . . . . . . . . . Scanalyzers . | . . . . . . . . . . . . Garrison Access . | . . . . . . . . . . . . Data Cores Recovered 2 | . . . 1 . 1 . . . . . . Used . | . . . . . . . . . . . . Hacking Detections 61 | . 6 11 3 3 10 10 5 7 1 . 5 Full Trace Events 8 | . 2 1 . . . 3 1 1 . . . Feedback Events 2 | . . . . . . 1 . 1 . . . Corruption 1 | . . . . . . . . 1 . . . Hackware Fried 1 | . . . . . . 1 . . . . . Feedback Blocked 1 | . . . . . . 1 . . . . . Robot Schematics Acquired . | . . . . . . . . . . . . Robots Built 2 | . . . . . . . 2 . . . . Authchips . | . . . . . . . . . . . . Time 84 | . . . . . . . 84 . . . . Total Robot Build Rating 12 | . . . . . . . 12 . . . . Part Schematics Acquired 5 | . 1 2 . . 1 1 . . . . . Parts Built 3 | . . . . . . . 3 . . . . Authchips 2 | . . . . . . . 2 . . . . Time 120 | . . . . . . . 120 . . . . Total Part Build Rating 13 | . . . . . . . 13 . . . . Parts Repaired 5 | . 1 1 . . 1 1 . 1 . . . Time 149 | . 26 44 . . 32 19 . 28 . . . Parts Recycled . | . . . . . . . . . . . . Recycled Matter . | . . . . . . . . . . . . Retrieved Matter . | . . . . . . . . . . . . Retrieved Components 37 | . 9 . . . 12 6 10 . . . . Parts Scanalyzed 2 | . . 2 . . . . . . . . . Part Schematics Acquired 2 | . . 2 . . . . . . . . . Parts Damaged . | . . . . . . . . . . . . Bothacking | -11 -10 -9 -8 -7 -6 -5 -4 -3 -2 -2 -1 ------------ Run | Yrd Mat Mat Mat Fac Fac Fac Fac Res Res DSF Acc Used RIF Installer . | . . . . . . . . . . . . Robots Hacked . | . . . . . . . . . . . . Non-combat . | . . . . . . . . . . . . Combat . | . . . . . . . . . . . . Robot Hacks Applied . | . . . . . . . . . . . . Relay Couplers Released 4 | . . . . 4 . . . . . . . Programmers 4 | . . . . 4 . . . . . . . Fabnet Peak Effective % 3 | . . . . . . . . 3 1 1 . Robots Rewired . | . . . . . . . . . . . . Allies Hacked . | . . . . . . . . . . . . Hacks Repelled . | . . . . . . . . . . . . Allies | -11 -10 -9 -8 -7 -6 -5 -4 -3 -2 -2 -1 -------- Run | Yrd Mat Mat Mat Fac Fac Fac Fac Res Res DSF Acc Total Allies 4 | . . . . . 1 1 2 . . . . Largest Group 2 | . . . . . 1 1 2 . . . . Highest-Rated Group 98 | . . . . . 26 26 98 . . . . Highest-Rated Ally 49 | . . . . . 26 26 49 . . . . Total Orders 2 | . . . . . . . . . . . 2 EXPLORE 2 | . . . . . . . . . . . 2 Ally Attacks 7 | . . . . . . . 7 . . . . Total Damage 298 | . . . . . . . 298 . . . . Kills 2 | . . . . . . . 2 . . . . Allies Corrupted 1 | . . . . . . . 1 . . . . Allies Melted . | . . . . . . . . . . . . Intel | -11 -10 -9 -8 -7 -6 -5 -4 -3 -2 -2 -1 ------- Run | Yrd Mat Mat Mat Fac Fac Fac Fac Res Res DSF Acc Active Infowar (turns) 8179 | 38 1133 . 1 723 1283 1498 1789 1353 . . 361 Sensors 6659 | . . . . 723 1283 1498 1789 1005 . . 361 Terrain 1088 | . . . . . . . . 1088 . . . Structural 2 | . . . . . . . 2 . . . . Traps 1 | . . . 1 . . . . . . . . Seismic 1171 | 38 1133 . . . . . . . . . . Jamming 76 | . . . . . . . . 76 . . . Robot Analysis Total 4 | . 1 . 1 . 2 . . . . . . Derelict Logs Recovered . | . . . . . . . . . . . . Drone Launches 3 | . . . . . . . . . . . 3 Drone Recoveries 1 | . . . . . . . . . . . 1 Exploration | -11 -10 -9 -8 -7 -6 -5 -4 -3 -2 -2 -1 ------------- Run | Yrd Mat Mat Mat Fac Fac Fac Fac Res Res DSF Acc Turns Passed 14491 | 119 2690 2216 961 996 1283 1588 2065 1918 36 51 568 Spaces Moved 7115 | 49 958 735 385 509 564 761 1006 1097 58 76 917 Core 1294 | 10 . . . . . . . 333 . 49 902 Treads 5518 | 39 958 735 385 509 564 761 1006 546 . . 15 Legs . | . . . . . . . . . . . . Wheels . | . . . . . . . . . . . . Hover 303 | . . . . . . . . 218 58 27 . Flight . | . . . . . . . . . . . . Fastest Speed 50 | 50 160 240 160 167 167 160 158 50 60 50 50 Average Speed 154 | 157 216 240 193 167 167 164 159 105 60 53 52 Slowest Speed 350 | 200 240 240 250 170 167 167 160 305 60 60 350 Overloaded Moves . | . . . . . . . . . . . . Propulsion Burnouts . | . . . . . . . . . . . . Robots Hopped . | . . . . . . . . . . . . Potential Cave-ins . | . . . . . . . . . . . . Cave-ins Triggered . | . . . . . . . . . . . . Exploration Rate (%) 36 | 5 94 74 31 14 15 23 23 27 2 91 34 Regions Visited 11 Branch Regions . Pre-discovered Areas . | . . . . . . . . . . . . Known Exits Taken 6 | . . . . 1 1 1 1 1 1 . . Unknown Exits Taken 4 | 1 1 1 1 . . . . . . . . Scrap Searched . | . . . . . . . . . . . . Spaces Dug 48 | . . 6 . 1 3 7 14 15 . . 2 Terrain Destroyed 211 | . 2 12 5 5 5 10 53 113 . . 6 Melee . | . . . . . . . . . . . . Projectile 94 | . . 3 . 5 5 10 30 35 . . 6 AOE 117 | . 2 9 5 . . . 23 78 . . . Terrain Rammed . | . . . . . . . . . . . . Walls Destroyed . | . . . . . . . . . . . . Machines Disabled . | . . . . . . . . . . . . Actions | -11 -10 -9 -8 -7 -6 -5 -4 -3 -2 -2 -1 --------- Run | Yrd Mat Mat Mat Fac Fac Fac Fac Res Res DSF Acc Total 9698 | 71 1420 1059 520 611 851 1054 1324 1647 59 83 999 Wait 1501 | 3 319 196 33 43 238 194 135 331 . . 9 Move 7104 | 48 957 734 384 508 563 760 1005 1096 57 75 917 Hop . | . . . . . . . . . . . . Pick Up 134 | 4 26 15 16 10 7 15 21 17 1 . 2 Fast Attach 48 | 7 2 2 1 1 1 4 7 10 . 5 8 Attach 67 | . 2 3 2 2 4 4 15 28 . . 7 Detach 30 | . . . . 2 . 2 8 10 . . 8 Swap 144 | . 12 19 18 13 7 12 21 42 . . . Drop 152 | . 16 26 24 12 5 21 22 17 1 2 6 Fire 484 | 9 86 64 42 20 26 42 90 96 . . 9 Melee . | . . . . . . . . . . . . Ram 30 | . . . . . . . . . . . 30 Kick . | . . . . . . . . . . . . Crush 2 | . . . . . . . . . . 1 1 Escape Stasis . | . . . . . . . . . . . . Rewire 2 | . . . . . . . . . . . 2 Trap . | . . . . . . . . . . . . Miscellaneous . | . . . . . . . . . . . . Route ------- -11/Scrapyard -10/Materials (discovered 4 exits: *Mat x3 / *Min) -9/Materials (discovered 3 exits: *Mat / *Min x2) -8/Materials (discovered 3 exits: *Fac / *Sto x2) -7/Factory (discovered 4 exits: *Fac x4) -6/Factory (discovered 4 exits: *Fac x4) -5/Factory (discovered 5 exits: *Fac x4 / *Upp) -4/Factory (discovered 4 exits: *Res x4) -3/Research (discovered 3 exits: *Res x3) -2/Research -2/DSF -1/Access History --------- Turn | Location | Event 20 | -11/Scrapyard | Discovered new exit (range 15) 120 | -11/Scrapyard | Entered Materials 311 | -10/Materials | Build established: Mutant 439 | -10/Materials | Discovered new exit (range 4) 1273 | -10/Materials | Discovered new exit (range 13) 1621 | -10/Materials | Discovered new exit (range 16) 1739 | -10/Materials | Identified exit to Mines 2123 | -10/Materials | Repaired Lgt. Treads 2810 | -10/Materials | Entered another Materials area 2810 | -9/Materials | Evolved 2 slots: Utility x1, Weapon x1 3356 | -9/Materials | Discovered new exit (range 15) 3383 | -9/Materials | Build established: Gunner 3778 | -9/Materials | Identified exit to Mines 3958 | -9/Materials | Destroyed 7 combat bots 4263 | -9/Materials | Build established: Scavenger-Gunner 4877 | -9/Materials | Discovered new exit (range 12) 4982 | -9/Materials | Repaired Broken Imp. Treads 5022 | -9/Materials | Build established: Gunner 5026 | -9/Materials | Entered another Materials area 5026 | -8/Materials | Evolved 2 slots: Propulsion x1, Utility x1 5028 | -8/Materials | Discovered new exit (range 14) 5163 | -8/Materials | Identified exit to Storage 5338 | -8/Materials | Build established: Tank 5938 | -8/Materials | Discovered new exit (range 14) 5987 | -8/Materials | Entered Factory 5987 | -7/Factory | Evolved 2 slots: Propulsion x1, Utility x1 6689 | -7/Factory | Identified exit to Factory 6800 | -7/Factory | Build established: Scavenger-Skirmisher 6843 | -7/Factory | Found Prototype Launcher 6843 | -7/Factory | Identified Rocket Array 6983 | -7/Factory | Entered another Factory area 6983 | -6/Factory | Evolved 2 slots: Utility x2 7925 | -6/Factory | Identified exit to Factory 8150 | -6/Factory | Repaired Hrd. Light Armor Plating 8266 | -6/Factory | Entered another Factory area 8266 | -5/Factory | Evolved 2 slots: Utility x2 8552 | -5/Factory | Build established: Hacker-Skirmisher 8914 | -5/Factory | Build established: Scavenger-Skirmisher 8949 | -5/Factory | Hacking Suite fried by hacking feedback 9043 | -5/Factory | Discovered new exit (range 15) 9181 | -5/Factory | Repaired Arm. Treads 9206 | -5/Factory | Identified exit to Upper Caves 9347 | -5/Factory | Build established: Hacker-Tank 9520 | -5/Factory | Identified exit to Factory 9708 | -5/Factory | Central database locked down 9854 | -5/Factory | Entered another Factory area 9854 | -4/Factory | Evolved 2 slots: Utility x2 10049 | -4/Factory | Identified exit to Research 10189 | -4/Factory | Fabricated Weapon Mount (x2) 10747 | -4/Factory | Fabricated Y-64 Sentinel? 11395 | -4/Factory | System corruption reached 10% 11492 | -4/Factory | Fabricated Hacking Suite? 11919 | -4/Factory | Entered Research 11919 | -3/Research | Evolved 2 slots: Power x1, Weapon x1 12031 | -3/Research | Repaired Hvy. Treads 12805 | -3/Research | Destroyed 11 combat bots 12955 | -3/Research | System corruption reached 10% 13001 | -3/Research | Lost 3 parts (1p1n1w) 13225 | -3/Research | Lost 5 parts (2u3w) 13537 | -3/Research | Lost 14 parts (1p2n4u7w) 13747 | -3/Research | Build established: Hacker-Mutant 13814 | -3/Research | Spotted B-86 Titan 13815 | -3/Research | Identified exit to Research 13834 | -3/Research | Core integrity fell below 50% 13837 | -3/Research | Entered another Research area 13837 | -2/Research | Evolved 2 slots: Propulsion x2 13858 | -2/Research | Identified exit to DSF 13867 | -2/Research | Lost 4 parts (1n3u) 13873 | -2/Research | Entered DSF 13897 | -2/DSF | Additional patrols routed to DSF 13912 | -2/DSF | Discovered new exit (range 15) 13924 | -2/DSF | Identified exit to Access 13924 | -2/DSF | Entered Access 13924 | -1/Access | Evolved 2 slots: Utility x2 13951 | -1/Access | Lost 4 parts (3u1w) 14008 | -1/Access | Spotted B-99 Colossus 14108 | -1/Access | Spotted B-99 Colossus 14120 | -1/Access | Build established: Mutant 14329 | -1/Access | System corruption reached 10% 14471 | -1/Access | Core integrity fell below 50% 14484 | -1/Access | Core integrity fell below 20% 14492 | -1/Access | Destroyed by H-81 Overseer with Heavy Linear Accelerator Last Messages --------------- 14445_ Biometal Heavy Treads destroyed. 14446_ K-01 Serf destroyed. 14453_ Acquired Lrn. Sensor Array. 14455_ Adv. Signal Interpreter destroyed. 14455_ Acquired Lrn. Sensor Array. 14456_ Dropped Lrn. Sensor Array. 14461_ Slammed into R-10 Processor. 14466_ System corrupted: Substantial component data lost. 14467_ Imp. Launcher Guidance Computer destroyed. 14467_ Dropped Mic. Antimatter Reactor. 14467_ Acquired Lgt. Quantum Reactor. 14469_ Lrn. Sensor Array destroyed. 14475_ Connecting with Terminal... 14477_ Slammed into S-43 Plague. 14477_ Destabilizing: Core damaged (-80). 14481_ S-43 Plague destroyed. 14488_ ALERT: Potential suspicious activity detected, Programmers report to Access Zone 1W. 14488_ R-10 Processor destroyed. 14492_ I7/M30A2 1ZBYUW1HZ SJB8=VE3,%UXK Map ----- +----------------------------------------------------+ | !#?##????????????????????????????????????? | | !#?# ???????????????????????????????????? | | !#?# ?????????#????????????????????????? | | #?# ??????? #????????????????????????? | | #?# """""" #?????????? ????????????? | | ##?# """""" #?????????? #??????????? | | ???# """""" #????????? #??????????? | | ???# """""" #????????? #??????????? | | ???# #????????? #??????????? | | ???# #????????? #??????????? | | ???? / #????????? #??????????? | | ?????? ??????????? #??????????? | | ???????? ????????????? #??????????? | | ##########+############### ##?????????? | | %! #?????????? | | % #?????????? | | #?????????? | | +?????????? | | *%[ #?????????? | | = #?????????? | | ##+#################+#### #?????????? | | #?????????? ?# % #?????????? | | #???????? ## ##????????? | | "" !#?????? # #????????? | | "" #???? """"" # #????????? | | "" #?? """"" #%@ t #????????? | | T" # """"" # H #????????? | | """ # """"" !# +????????? | | "" # ] ????"" # #????????? | | # ???????? # #????????? | | #? ??????????? # #????????? | | * #?????????????##### ###????????? | | #?????????????????? #??????????? | | #?????????????????? #??????????? | | #?????????????????? #??????????? | | ???????????????????? #??????????? | | ?????????????????????? #??????????? | | ????????????????????????? #??????????? | | ????????????????????????? #??????????? | | ??????????????????????????? ???????????? | | ??????????????????????????? ?????????????? | | ?????????????????????????????????????????? | | ?????????????????????????????????????????? | | ?????????????????????????????????????????? | | ?????????????????????????????????????????? | | ?????????????????????????????????????????? | | ?????????????????????????????????????????? | | ?????????????????????????????????????????? | | ?????????????????????????????????????????? | | ?????????????????????????????????????????? | +----------------------------------------------------+ Best States ------------- Heat Dissipation 84 Energy Generation 33 Energy Capacity 525 Matter Stores 300 Matter Capacity 550 Sight Range 16 Robot Scan Range 18 Terrain Scan Range 20 Terrain Scan Density 210 Jamming Range 14 Armor Coverage 1650 Core Shielding 30 Weapon Cycling 20 Evasion (%) 54 Targeting Accuracy 20 Launcher Accuracy 30 Core Analysis 6 Recoil Reduction 4 Offensive Hacking 40 Defensive Hacking 10 Authchip Count 1 Item Schematics ----------------- Huge Storage Unit | -10/Materials | Hacked Hacking Suite | -9/Materials | Scanalyzed Imp. Terrain Scanner | -9/Materials | Scanalyzed KE Penetrator | -6/Factory | Hacked Weapon Mount | -5/Factory | Hacked Robot Schematics ------------------ None Fabricated ------------ Weapon Mount | x2 | -4/Factory | Authchip Y-64 Sentinel | x2 | -4/Factory | Preloaded Hacking Suite | x1 | -4/Factory | Authchip Repaired ---------- Lgt. Treads | 31% | -10/Materials Imp. Treads | 58% | -9/Materials | Broken Hrd. Light Armor Plating | 24% | -6/Factory Arm. Treads | 61% | -5/Factory Hvy. Treads | 12% | -3/Research Alien Tech Used ----------------- None Achievements -------------- None Challenges ------------ None Game ------ Seed PointySalvagingKit Manual? 0 Play Time 02:08:19 Cumulative 480.6 hours Start 2025.10.21 @ 16:21:02 End 2025.10.21 @ 18:32:29 Sessions 1 Manual Loads 0 Difficulty Rogue Special Mode None Game No. 226 Rogue 226 Adventurer 0 Explorer 0 Win Type - Total 6 Types 5/0/0/0/0/0/1/0/0/0 Lore% 66 Gallery% 72 Achievement% 64 Wizard Run 0 Options --------- Layout 0 ASCII 0 Keyboard 1 Movement Vi Keybinds 0 Fullscreen 2 Font 18/SmallcapsGlow Map View 76x50 Zoom Use 0% Tactical HUD 1 Map Filters NONE Filters NONE Steam 1 RUN: 0e55d8ff-95d3-4be5-a61c-f0c5efc8a0b9